bitfinex-derivatives/quotes_BTCF0:USTF0_20250814
["timestamp","ask_amount","ask_price","bid_price","bid_amount"]
[1755139615473,2.60754181,123780.0,123770.0,0.17006961]
[1755139615672,3.37394181,123780.0,123770.0,0.20310961]
[1755139615874,3.25394181,123780.0,123770.0,0.23394961]
[1755139616074,3.37394181,123780.0,123770.0,0.23394961]
[1755139616477,3.39259808,123780.0,123770.0,0.18482113]
[1755139616680,2.73617152,123780.0,123770.0,0.18482113]
[1755139616968,3.27311808,123780.0,123770.0,0.23367113]
[1755139617173,2.73669152,123780.0,123770.0,0.23367113]
[1755139617764,1.96977152,123780.0,123770.0,0.23367113]
[1755139617962,2.73989152,123780.0,123770.0,0.23367113]
[1755139618167,2.68186555,123780.0,123770.0,0.23367113]
[1755139619172,0.01865627,123780.0,123770.0,1.13089769]
[1755139619372,0.03383627,123780.0,123770.0,1.36507113]
[1755139619568,0.03383627,123780.0,123770.0,0.23367113]
[1755139619569,0.39463627,123780.0,123770.0,0.23367113]
[1755139619767,0.40946627,123780.0,123770.0,0.18482113]
[1755139619967,1.06589283,123780.0,123770.0,0.13518113]
[1755139620174,1.14665463,123780.0,123770.0,0.03015283]
[1755139620381,1.9750406,123780.0,123770.0,0.03015283]
[1755139620571,1.43861404,123780.0,123770.0,0.03015283]
[1755139620768,1.9750406,123780.0,123770.0,0.03015283]
[1755139621077,1.9751206,123780.0,123770.0,0.03015283]
[1755139621476,1.92697602,123780.0,123770.0,0.07888436]
[1755139621777,1.39054946,123780.0,123770.0,0.13682436]
[1755139621977,1.92697602,123780.0,123770.0,0.10378436]
[1755139622278,1.92697602,123780.0,123770.0,0.07888436]
[1755139622674,0.01483,123770.0,123750.0,0.09858121]
[1755139622881,1.69751656,123760.0,123750.0,0.09858121]
[1755139623080,1.82617283,123760.0,123750.0,0.09858121]
[1755139623778,1.90694763,123760.0,123750.0,0.09858121]
[1755139624277,1.90694763,123760.0,123750.0,0.0807785]
[1755139626384,1.28974627,123760.0,123750.0,0.0807785]
[1755139626580,1.82617283,123760.0,123750.0,0.0807785]
[1755139626776,1.82617283,123760.0,123750.0,0.1056785]
[1755139627082,1.28974627,123760.0,123750.0,0.1056785]
[1755139627276,1.82761283,123760.0,123750.0,0.1056785]
[1755139627883,1.37196107,123760.0,123750.0,0.1056814]
[1755139628083,1.90838763,123760.0,123750.0,0.1056814]
[1755139628276,0.03001,123750.0,123730.0,0.2195209]
[1755139628587,0.03001,123730.0,123720.0,0.303162]
[1755139628784,0.94589283,123730.0,123720.0,0.303162]
[1755139629283,0.40946627,123730.0,123720.0,0.303162]
[1755139630781,1.18066627,123730.0,123720.0,0.303162]
[1755139630984,0.81986627,123730.0,123720.0,0.303162]
[1755139632385,1.18066627,123730.0,123720.0,0.237712]
[1755139632586,1.72049283,123730.0,123720.0,0.2195336]
[1755139632787,0.94589283,123730.0,123720.0,0.2195336]
[1755139633085,1.84045283,123730.0,123720.0,0.1864936]
[1755139633589,1.06589283,123730.0,123720.0,0.1864936]
[1755139633780,1.72029283,123730.0,123720.0,0.1864936]
[1755139634386,1.72029283,123730.0,123720.0,0.2211036]
[1755139634583,0.40946627,123730.0,123720.0,0.2211036]
[1755139634789,1.18358627,123730.0,123720.0,0.2683836]
[1755139634990,1.18358627,123730.0,123720.0,0.2849836]
[1755139635890,0.40946627,123730.0,123720.0,0.2849836]
[1755139636187,1.29358627,123730.0,123720.0,0.2849836]
[1755139636383,1.31358627,123730.0,123720.0,0.2849836]
[1755139636585,0.03383627,123730.0,123720.0,0.82141016]
[1755139636792,0.39463627,123730.0,123720.0,0.82141016]
[1755139636986,0.03383627,123730.0,123720.0,0.2849836]
[1755139637486,0.03383627,123730.0,123720.0,0.82141016]
[1755139637691,0.40946627,123730.0,123720.0,0.82141016]
[1755139637991,0.40946627,123730.0,123720.0,0.2849836]
[1755139638388,0.04866627,123730.0,123720.0,0.2849836]
[1755139638592,0.80485,123730.0,123720.0,0.2849836]
[1755139638793,1.18446429,123730.0,123720.0,0.2849836]
[1755139639600,0.40962429,123730.0,123720.0,0.2849836]
[1755139639788,1.18434429,123730.0,123720.0,0.2849836]
[1755139640698,0.82354429,123730.0,123720.0,0.2849836]
[1755139640897,0.80473,123730.0,123720.0,0.2849836]
[1755139641097,1.1843426,123730.0,123720.0,0.2849836]
[1755139642091,1.77076916,123730.0,123710.0,0.0808043]
[1755139642294,1.70475656,123720.0,123710.0,0.1733574]
[1755139642500,1.84356916,123720.0,123710.0,0.1057074]
[1755139642696,1.84348916,123720.0,123700.0,0.4051399]
[1755139642893,0.55160656,123710.0,123700.0,0.4300399]
[1755139643093,0.56643656,123710.0,123700.0,0.4466399]
[1755139643597,1.04723656,123710.0,123700.0,0.2042003]
[1755139643898,1.04723656,123710.0,123700.0,0.1041203]
[1755139644290,1.1121948,123710.0,123700.0,0.1386203]
[1755139644598,1.1121948,123710.0,123700.0,0.1632003]
[1755139644599,0.45576824,123710.0,123700.0,0.1632003]
[1755139644798,0.45576824,123710.0,123700.0,0.2008903]
[1755139644799,0.48752672,123710.0,123700.0,0.2008903]
[1755139645199,0.50687686,123710.0,123700.0,0.2008903]
[1755139645396,0.48752672,123710.0,123700.0,0.2008903]
[1755139645600,1.02395328,123710.0,123700.0,0.2008903]
[1755139645903,1.04330172,123710.0,123700.0,0.2008903]
[1755139646102,0.68250172,123710.0,123700.0,0.2008903]
[1755139646303,0.66315328,123710.0,123700.0,0.2008903]
[1755139647190,1.02395328,123710.0,123700.0,0.2008903]
[1755139647394,0.48752672,123710.0,123700.0,0.2008903]
[1755139647901,0.12672672,123710.0,123700.0,0.2008903]
[1755139648303,0.48752672,123710.0,123700.0,0.2008903]
[1755139649101,1.02395328,123710.0,123700.0,0.2008903]
[1755139649795,0.48752672,123710.0,123700.0,0.2008903]
[1755139649996,1.02395328,123710.0,123700.0,0.2008903]
[1755139650501,0.63735626,123710.0,123700.0,0.2008903]
[1755139650795,0.50735626,123710.0,123700.0,0.2008903]
[1755139651304,0.62735626,123710.0,123700.0,0.2008903]
[1755139651507,1.04378282,123710.0,123700.0,0.2008903]
[1755139651900,1.14378282,123710.0,123700.0,0.2008903]
[1755139652097,1.04378282,123710.0,123700.0,0.2008903]
[1755139652801,1.15378282,123710.0,123700.0,0.2008903]
[1755139653006,1.2361458,123710.0,123690.0,0.2839856]
[1755139653202,0.89722656,123700.0,123690.0,0.179858]
[1755139653404,1.81191656,123700.0,123690.0,0.0990412]
[1755139653608,1.82674656,123700.0,123690.0,0.0990412]
[1755139653810,1.82666656,123700.0,123690.0,0.0990412]
[1755139654002,1.31007572,123700.0,123690.0,0.0990412]
[1755139654302,1.72650228,123700.0,123690.0,0.1223512]
[1755139654503,1.83650228,123700.0,123690.0,0.1223512]
[1755139654703,1.72650228,123700.0,123690.0,0.1223512]
[1755139654904,1.83650228,123700.0,123690.0,0.1223512]
[1755139656211,0.41091572,123700.0,123690.0,0.1891612]
[1755139656412,1.18995572,123700.0,123690.0,0.2191212]
[1755139656617,1.19027572,123700.0,123690.0,0.2191212]
[1755139657313,0.41091572,123700.0,123690.0,0.2191212]
[1755139657514,1.19027572,123700.0,123690.0,0.2191212]
[1755139658009,0.41091572,123700.0,123690.0,0.2191212]
[1755139658214,1.18995572,123700.0,123690.0,0.2191212]
[1755139659007,1.19123572,123700.0,123690.0,0.2191212]
[1755139659612,1.72766228,123700.0,123690.0,0.2191212]
[1755139659811,1.72702228,123700.0,123690.0,0.2191212]
[1755139660717,1.72702228,123700.0,123690.0,0.0990412]
[1755139660918,1.83702228,123700.0,123690.0,0.0990412]
[1755139661414,1.21897248,123700.0,123680.0,0.0808251]
[1755139661620,0.03028,123680.0,123670.0,0.1616621]
[1755139661816,1.03750656,123680.0,123670.0,0.1616621]
[1755139662118,1.83779839,123680.0,123670.0,0.1849721]
[1755139662816,1.83779839,123680.0,123670.0,0.0808305]
[1755139663017,1.83779839,123680.0,123650.0,0.22059811]
[1755139663018,0.03028,123660.0,123650.0,0.22059811]
[1755139663212,1.81686656,123660.0,123650.0,0.16989309]
[1755139663514,2.27934559,123660.0,123650.0,0.01823699]
[1755139663710,1.49998559,123660.0,123650.0,0.01823699]
[1755139664110,2.27918559,123660.0,123650.0,0.01823699]
[1755139664319,2.27918559,123660.0,123650.0,0.00022707]
[1755139664510,2.27938559,123660.0,123650.0,0.00022707]
[1755139664712,2.38879485,123660.0,123650.0,0.00022707]
[1755139665418,1.60939485,123660.0,123650.0,0.00022707]
[1755139665618,2.38835485,123660.0,123650.0,0.08107327]
[1755139665913,0.88398928,123660.0,123650.0,0.08107327]
[1755139666116,1.64849888,123660.0,123650.0,0.12030707]
[1755139666321,2.39823485,123660.0,123650.0,0.10553707]
[1755139666613,0.1111262,123650.0,123640.0,0.02331]
[1755139666816,1.91945597,123650.0,123640.0,0.02331]
[1755139667014,1.91945597,123650.0,123640.0,0.1041627]
[1755139667015,1.94499217,123650.0,123640.0,0.1041627]
[1755139667212,1.94499217,123650.0,123640.0,0.02331]
[1755139667411,2.07499217,123650.0,123640.0,0.02331]
[1755139667615,1.29635217,123650.0,123640.0,0.02331]
[1755139667920,1.99446597,123650.0,123640.0,0.1041627]
[1755139668119,2.07531207,123650.0,123640.0,0.1041627]
[1755139668320,2.07531207,123650.0,123640.0,0.02331]
[1755139668511,2.07531207,123650.0,123640.0,0.1041627]
[1755139668713,1.99446597,123650.0,123640.0,0.1041627]
[1755139669315,2.07531207,123650.0,123640.0,0.1061627]
[1755139669811,1.29635207,123650.0,123640.0,0.002]
[1755139670012,2.07587207,123650.0,123640.0,0.002]
[1755139671323,2.70508804,123650.0,123640.0,0.002]
[1755139671620,2.07539207,123650.0,123640.0,0.002]
[1755139672213,0.1617087,123640.0,123620.0,0.2518457]
[1755139672421,1.79981597,123630.0,123620.0,0.29128817]
[1755139672621,1.79981597,123630.0,123620.0,0.2818057]
[1755139672821,1.82106723,123630.0,123620.0,0.2818057]
[1755139673023,1.04206723,123630.0,123620.0,0.2818057]
[1755139673323,1.82090723,123630.0,123620.0,0.2818057]
[1755139673514,0.39750126,123630.0,123620.0,0.2818057]
[1755139673715,1.17598126,123630.0,123620.0,0.2818057]
[1755139673912,1.17598126,123630.0,123620.0,0.2838057]
[1755139674119,1.17610126,123630.0,123620.0,0.2838057]
[1755139674722,1.2403383,123630.0,123620.0,0.2838057]
[1755139675821,0.06917379,123630.0,123620.0,0.91354167]
[1755139676017,0.05372379,123630.0,123620.0,0.2838057]
[1755139676218,0.02133176,123630.0,123620.0,0.2838057]
[1755139676414,0.02133176,123630.0,123620.0,1.27434167]
[1755139676614,0.84281,123650.0,123640.0,0.0808527]
[1755139676827,0.08587138,123650.0,123640.0,0.1986127]
[1755139677128,0.50328138,123650.0,123640.0,0.1986127]
[1755139677330,0.15850138,123650.0,123640.0,0.1986127]
[1755139677528,0.51930138,123650.0,123640.0,0.1986127]
[1755139677826,0.19031119,123650.0,123640.0,0.1986127]
[1755139680516,0.14248138,123650.0,123640.0,1.04010067]
[1755139680824,0.3608,123670.0,123660.0,0.1985996]
[1755139681030,1.26360025,123680.0,123670.0,0.1985931]
[1755139681227,1.24691025,123680.0,123670.0,0.1985931]
[1755139681422,0.46851025,123680.0,123670.0,0.1985931]
[1755139681727,0.3608,123680.0,123670.0,0.21690647]
[1755139682120,0.41037,123680.0,123670.0,0.21690647]
[1755139682626,0.3608,123680.0,123670.0,0.21690647]
[1755139682830,0.3608,123680.0,123670.0,0.21490647]
[1755139683032,0.39435,123680.0,123670.0,0.21490647]
[1755139683223,0.3608,123680.0,123670.0,0.21490647]
[1755139683424,1.39059367,123690.0,123680.0,0.1262566]
[1755139683626,1.42202004,123690.0,123680.0,0.1985866]
[1755139684232,1.48016029,123690.0,123680.0,0.1985866]
[1755139684528,1.49660373,123690.0,123680.0,0.1985866]
[1755139685034,0.69289006,123690.0,123680.0,0.1985866]
[1755139685235,0.66014006,123690.0,123680.0,0.1985866]
[1755139685434,0.69289006,123690.0,123680.0,0.1985866]
[1755139685825,0.69289006,123690.0,123680.0,0.1995866]
[1755139686427,0.70276006,123690.0,123680.0,0.1995866]
[1755139687026,0.21083662,123690.0,123680.0,0.73643899]
[1755139687238,0.28289662,123690.0,123680.0,0.1995866]
[1755139687432,0.32551662,123690.0,123680.0,0.73643899]
[1755139687834,0.17941025,123690.0,123680.0,0.73643899]
[1755139688034,0.22898025,123690.0,123680.0,0.73643899]
[1755139688236,0.23595,123690.0,123680.0,0.9766266]
[1755139688439,0.23595,123690.0,123680.0,0.1995866]
[1755139688731,0.23595,123690.0,123680.0,0.0818266]
[1755139688732,1.24360239,123690.0,123680.0,0.0818266]
[1755139688939,2.10130239,123690.0,123680.0,0.0818266]
[1755139689140,2.15944264,123690.0,123680.0,0.0818266]
[1755139689339,2.15924264,123690.0,123680.0,0.0818266]
[1755139689927,1.30174264,123690.0,123680.0,0.0808266]
[1755139690127,1.30174264,123690.0,123670.0,0.33113897]
[1755139690128,2.28619556,123690.0,123670.0,0.33113897]
[1755139690432,1.15129914,123680.0,123670.0,0.01831337]
[1755139690740,0.1955131,123670.0,123660.0,0.1616733]
[1755139691036,1.10498063,123670.0,123660.0,0.1616733]
[1755139691239,1.88174063,123670.0,123660.0,0.1616733]
[1755139691440,1.93988088,123670.0,123660.0,0.1616733]
[1755139691634,1.16312088,123670.0,123660.0,0.1616733]
[1755139691827,1.93952088,123670.0,123660.0,0.1616733]
[1755139692030,1.93934143,123670.0,123660.0,0.1616733]
[1755139692232,1.88138063,123670.0,123660.0,0.1616733]
[1755139692528,1.88126063,123670.0,123660.0,0.1616733]
[1755139692735,1.90169332,123670.0,123660.0,0.1616733]
[1755139693742,1.12541332,123670.0,123660.0,0.1616733]
[1755139693940,1.90145332,123670.0,123660.0,0.1636733]
[1755139694328,0.49591269,123670.0,123660.0,0.2570133]
[1755139694642,1.27163269,123670.0,123660.0,0.2814333]
[1755139694936,0.43922701,123670.0,123660.0,0.91093393]
[1755139695143,0.38123269,123670.0,123660.0,0.91093393]
[1755139695334,0.43922701,123670.0,123660.0,0.91093393]
[1755139695534,0.47277701,123670.0,123660.0,0.92347179]
[1755139695734,0.47277701,123670.0,123660.0,0.29397116]
[1755139696040,0.48879701,123670.0,123660.0,0.29397116]
[1755139696434,0.43922701,123670.0,123660.0,0.29397116]
[1755139696640,0.07842701,123670.0,123660.0,1.28427179]
[1755139697443,0.07842701,123670.0,123660.0,1.28427803]
[1755139697940,0.02043269,123670.0,123660.0,1.28427803]
[1755139698332,0.05261181,123670.0,123660.0,1.49600603]
[1755139698537,1e-08,123670.0,123660.0,2.27228603]
[1755139698739,0.1942123,123690.0,123680.0,0.1985865]
[1755139699037,0.1942123,123690.0,123680.0,0.7969422]
[1755139699438,0.12127,123690.0,123680.0,1.1577422]
[1755139699945,0.12127,123690.0,123680.0,2.0952462]
[1755139701642,0.12127,123690.0,123680.0,1.9335422]
[1755139701841,0.12127,123690.0,123680.0,1.9345422]
[1755139703638,0.12127,123690.0,123680.0,1.30404157]
[1755139703833,0.12127,123690.0,123680.0,1.9375422]
[1755139705038,0.12127,123690.0,123680.0,1.30652157]
[1755139705238,0.12127,123690.0,123680.0,1.30628157]
[1755139705440,0.86708063,123690.0,123680.0,0.17144157]
[1755139705940,0.23758,123690.0,123680.0,0.17144157]
[1755139706342,0.23758,123690.0,123680.0,0.17153669]
[1755139706538,2.10056635,123690.0,123680.0,0.05377669]
[1755139707048,2.10056635,123690.0,123680.0,0.01663922]
[1755139707243,2.10132635,123690.0,123680.0,0.01463922]
[1755139707448,2.22132635,123690.0,123680.0,0.01463922]
[1755139707948,2.22132635,123690.0,123680.0,0.01563922]
[1755139708350,2.22132635,123690.0,123680.0,0.09646602]
[1755139708548,2.22132635,123690.0,123680.0,0.01263922]
[1755139708747,2.22132635,123690.0,123680.0,0.09446602]
[1755139709048,2.14050615,123690.0,123680.0,0.09446602]
[1755139709251,2.22132645,123690.0,123680.0,0.01363922]
[1755139709752,2.14050615,123690.0,123680.0,0.09446602]
[1755139710342,2.15934669,123690.0,123680.0,0.09446602]
[1755139711449,2.17548699,123690.0,123680.0,0.01363922]
[1755139712052,0.1970468,123680.0,123670.0,0.01661741]
[1755139712352,1.98022797,123680.0,123670.0,0.01661741]
[1755139712546,1.89952117,123680.0,123670.0,0.09745071]
[1755139713454,1.12536117,123680.0,123670.0,0.01661741]
[1755139713747,1.89916117,123680.0,123670.0,0.09745071]
[1755139713953,1.89916117,123680.0,123670.0,0.09845071]
[1755139714554,1.89916117,123680.0,123670.0,0.01761741]
[1755139714852,1.89916117,123680.0,123670.0,0.09845071]
[1755139715558,1.89864117,123680.0,123670.0,0.09845071]
[1755139716548,1.12536117,123680.0,123670.0,0.09845071]
[1755139716848,1.89832117,123680.0,123670.0,0.09845071]
[1755139717048,1.12536117,123680.0,123670.0,0.09845071]
[1755139717449,1.97898807,123680.0,123670.0,0.01761741]
[1755139717657,1.89816117,123680.0,123670.0,0.01761741]
[1755139718162,1.89816117,123680.0,123670.0,0.09845081]
[1755139718456,1.12536117,123680.0,123670.0,0.09845081]
[1755139718652,1.89816117,123680.0,123670.0,0.09845081]
[1755139718847,1.97898807,123680.0,123670.0,0.001]
[1755139719044,1.24618807,123680.0,123670.0,0.001]
[1755139719247,1.93772117,123680.0,123670.0,0.001]
[1755139719549,2.01854797,123680.0,123670.0,0.001]
[1755139719852,2.08478924,123680.0,123670.0,0.001]
[1755139720356,2.04478924,123680.0,123670.0,0.001]
[1755139720557,2.15478924,123680.0,123670.0,0.001]
[1755139720949,2.15478934,123680.0,123670.0,0.001]
[1755139721856,2.21137934,123680.0,123670.0,0.001]
[1755139722853,1.43901934,123680.0,123670.0,0.001]
[1755139723053,2.21029934,123680.0,123670.0,0.001]
[1755139724060,2.21029934,123680.0,123670.0,0.0136076]
[1755139724765,0.04808,123660.0,123650.0,0.1843274]
[1755139725052,0.04808,123660.0,123650.0,0.2105874]
[1755139725053,1.78510813,123660.0,123650.0,0.2105874]
[1755139725358,1.78510813,123660.0,123650.0,0.2818074]
[1755139727061,1.24786,123660.0,123650.0,0.2818074]
[1755139727262,1.78510813,123660.0,123650.0,0.2848074]
[1755139729065,1.24786,123660.0,123650.0,0.2848074]
[1755139729256,1.78510813,123660.0,123650.0,0.2848074]
[1755139729458,1.01426813,123660.0,123650.0,0.1646874]
[1755139729658,1.78450813,123660.0,123650.0,0.1873274]
[1755139730154,1.78442813,123660.0,123650.0,0.1873274]
[1755139730366,1.80322976,123660.0,123650.0,0.1873274]
[1755139731464,1.78442813,123660.0,123650.0,0.1873274]
[1755139733060,1.78442813,123660.0,123650.0,0.003]
[1755139733061,1.82442813,123660.0,123650.0,0.003]
[1755139733265,2.20343516,123660.0,123650.0,0.0838465]
[1755139733469,2.20335516,123660.0,123650.0,0.0838465]
[1755139733657,1.51471506,123660.0,123650.0,0.003]
[1755139733858,2.28411506,123660.0,123650.0,0.003]
[1755139734361,0.08987,123650.0,123640.0,0.1177129]
[1755139734565,1.02995516,123650.0,123640.0,0.20886538]
[1755139734765,1.79915516,123650.0,123640.0,0.20886538]
[1755139735364,1.26190703,123650.0,123640.0,0.20886538]
[1755139735566,1.79915516,123650.0,123640.0,0.20886538]
[1755139735862,1.79915516,123650.0,123640.0,0.2023829]
[1755139736067,1.02995516,123650.0,123640.0,0.21186538]
[1755139736366,1.79907516,123650.0,123640.0,0.21186538]
[1755139736768,1.79907516,123650.0,123640.0,0.22420308]
[1755139737365,1.12995516,123650.0,123640.0,0.02482018]
[1755139737564,1.96083453,123650.0,123640.0,0.0153377]
[1755139737860,1.87998813,123650.0,123640.0,0.0153377]
[1755139738066,1.11114813,123650.0,123640.0,0.0961906]
[1755139738265,1.87998813,123650.0,123640.0,0.0961906]
[1755139738767,1.87998813,123650.0,123640.0,0.0838529]
[1755139738969,1.87978813,123650.0,123640.0,0.0838529]
[1755139740069,1.87978813,123650.0,123640.0,0.1081429]
[1755139741575,1.11114813,123650.0,123640.0,0.1081429]
[1755139741774,1.87922813,123650.0,123640.0,0.1081429]
[1755139742676,0.3608,123650.0,123640.0,0.73963103]
[1755139743474,0.45067,123650.0,123640.0,0.2023829]
[1755139744071,0.08987,123650.0,123640.0,0.2023829]
[1755139747567,0.1131,123650.0,123640.0,0.2023829]
[1755139747767,0.65034813,123650.0,123640.0,0.2023829]
[1755139747972,0.88078,123650.0,123640.0,0.2023829]
[1755139748167,0.1131,123650.0,123640.0,0.2023829]
[1755139748373,0.85755,123650.0,123640.0,0.2023829]
[1755139748976,0.08987,123650.0,123640.0,0.2023829]
[1755139749176,0.08987,123650.0,123640.0,0.73963103]
[1755139749571,0.3608,123670.0,123660.0,0.07365]
[1755139749873,0.44939,123680.0,123660.0,0.89829403]
[1755139750067,0.43732078,123680.0,123670.0,0.73661153]
[1755139750472,0.02608378,123680.0,123670.0,1.09741153]
[1755139750672,1e-07,123680.0,123670.0,1.09741153]
[1755139750877,1e-07,123680.0,123670.0,1.86505153]
[1755139751074,0.0020001,123680.0,123670.0,1.86505153]
[1755139751377,1e-07,123680.0,123670.0,1.09741153]
[1755139751573,1e-07,123680.0,123670.0,0.5601634]
[1755139751772,0.11003722,123680.0,123670.0,0.5601634]
[1755139752078,0.11203722,123680.0,123670.0,0.5601634]
[1755139752475,0.17671722,123680.0,123670.0,1.09741153]
[1755139752668,0.08684722,123680.0,123670.0,1.18932375]
[1755139752872,0.06668,123680.0,123670.0,1.18932375]
[1755139753166,0.0248096,123680.0,123670.0,1.35103575]
[1755139753373,0.47523025,123710.0,123690.0,0.360988]
[1755139753569,0.57716631,123710.0,123700.0,0.199344]
[1755139754267,0.57716631,123710.0,123700.0,0.127354]
[1755139754473,0.57716631,123710.0,123700.0,0.185274]
[1755139754682,0.61095618,123710.0,123700.0,0.199344]
[1755139755385,0.61095618,123710.0,123700.0,0.200344]
[1755139756085,1.37843618,123710.0,123700.0,0.200344]
[1755139756281,0.61095618,123710.0,123700.0,0.200344]
[1755139759588,1.28101618,123710.0,123700.0,0.200344]
[1755139759788,1.34710618,123710.0,123700.0,0.200344]
[1755139760089,0.61095618,123710.0,123700.0,0.200344]
[1755139760490,0.25015618,123710.0,123700.0,0.200344]
[1755139760687,0.13637618,123710.0,123700.0,0.82950435]
[1755139761594,0.07033211,123710.0,123700.0,0.82950435]
[1755139763491,0.07033211,123710.0,123700.0,0.200344]
[1755139764093,0.18833211,123710.0,123700.0,0.200344]
[1755139765188,0.17194593,123710.0,123700.0,0.200344]
[1755139767194,0.06992593,123710.0,123700.0,0.200344]
[1755139767487,0.05394593,123710.0,123700.0,0.200344]
[1755139767694,0.05394593,123710.0,123700.0,0.82950435]
[1755139767894,0.05394593,123710.0,123700.0,1.59666435]
[1755139768195,0.05394593,123710.0,123700.0,1.95746435]
[1755139770090,0.05394593,123710.0,123700.0,1.328304]
[1755139770496,0.07327593,123710.0,123700.0,1.328304]
[1755139771403,0.05311987,123710.0,123700.0,1.328304]
[1755139772297,0.01933,123710.0,123700.0,1.95746435]
[1755139772497,1e-07,123710.0,123700.0,1.35197634]
[1755139772698,1e-07,123710.0,123700.0,2.0263197]
[1755139772899,0.04404,123720.0,123710.0,0.1278675]
[1755139773098,0.04404,123720.0,123710.0,1.09777121]
[1755139773805,0.07873515,123720.0,123710.0,1.09777121]
[1755139774807,0.07873515,123720.0,123710.0,1.19003263]
[1755139776200,0.14211759,123720.0,123710.0,0.5643475]
[1755139776402,0.21695761,123720.0,123710.0,0.5643475]
[1755139778709,0.21695761,123720.0,123710.0,0.5613475]
[1755139778899,0.21695761,123720.0,123710.0,0.5623475]
[1755139779609,0.57775761,123720.0,123710.0,0.2025475]
[1755139780107,1.20644274,123720.0,123710.0,0.1298675]
[1755139780409,1.27173822,123720.0,123710.0,0.0828075]
[1755139780907,1.27173822,123720.0,123710.0,0.2025475]
[1755139781095,0.28225309,123720.0,123710.0,0.2025475]
[1755139781503,0.18023309,123720.0,123710.0,0.2025475]
[1755139781903,0.23880309,123720.0,123710.0,0.2025475]
[1755139782104,0.27229309,123720.0,123710.0,0.2015475]
[1755139782306,0.28225309,123720.0,123710.0,0.2015475]
[1755139782808,0.28225309,123720.0,123710.0,0.9683475]
[1755139783109,0.23821309,123720.0,123710.0,0.9683475]
[1755139785809,0.12021309,123720.0,123710.0,1.95783263]
[1755139786009,0.05491761,123720.0,123710.0,1.95783263]
[1755139786205,0.02022246,123720.0,123710.0,1.95775263]
[1755139786408,6e-08,123720.0,123710.0,1.95775263]
[1755139786619,6e-08,123720.0,123710.0,1.19103263]
[1755139786912,6e-08,123720.0,123710.0,1.97009769]
[1755139788314,6e-08,123720.0,123710.0,1.97009867]
[1755139795217,6e-08,123720.0,123710.0,1.34141354]
[1755139795407,6e-08,123720.0,123710.0,1.97009867]
[1755139796814,6e-08,123720.0,123710.0,1.87786938]
[1755139798515,6e-08,123720.0,123710.0,1.34141354]
[1755139798707,6e-08,123720.0,123710.0,1.87786938]
[1755139800311,0.01650006,123720.0,123710.0,0.57469354]
[1755139800616,0.6511359,123720.0,123710.0,1.34097354]
[1755139801009,0.6511359,123720.0,123710.0,0.57469354]
[1755139801312,0.6511359,123720.0,123710.0,1.34097354]
[1755139801709,0.11468006,123720.0,123710.0,1.34097354]
[1755139802105,0.11468006,123720.0,123710.0,1.34125277]
[1755139803015,0.11468006,123720.0,123710.0,0.57497277]
[1755139803204,0.11468006,123720.0,123710.0,1.34121277]
[1755139803609,0.7711359,123720.0,123710.0,0.57497277]
[1755139803809,0.6511359,123720.0,123710.0,0.21417277]
[1755139804316,0.6511359,123720.0,123710.0,0.09443277]
[1755139804908,0.6511359,123720.0,123710.0,0.21403277]
[1755139805210,0.11468006,123720.0,123710.0,0.21403468]
[1755139805510,0.6511359,123720.0,123710.0,0.21403468]
[1755139806017,0.11468006,123720.0,123710.0,0.21403468]
[1755139806215,0.6511359,123720.0,123710.0,0.21403468]
[1755139806809,0.6511359,123720.0,123710.0,0.10431468]
[1755139806810,0.7711359,123720.0,123710.0,0.10431468]
[1755139807006,0.7711359,123720.0,123710.0,0.09443468]
[1755139807211,0.8219329,123720.0,123710.0,0.09443468]
[1755139807409,0.8419329,123720.0,123710.0,0.09443468]
[1755139807613,0.8419329,123720.0,123710.0,0.01362718]
[1755139807614,1.90085274,123720.0,123710.0,0.01362718]
[1755139807912,2.71701274,123720.0,123710.0,0.01362718]
[1755139808609,2.77501561,123720.0,123710.0,0.01362718]
[1755139809518,2.77497561,123720.0,123710.0,0.01362718]
[1755139809720,2.71697274,123720.0,123710.0,0.01362718]
[1755139809920,2.63617574,123720.0,123710.0,0.09443058]
[1755139810224,2.0997199,123720.0,123710.0,0.09443058]
[1755139810720,1.3335999,123720.0,123710.0,0.09443058]
[1755139810912,2.0997599,123720.0,123710.0,0.09343058]
[1755139811115,1.3335999,123720.0,123710.0,0.09343058]
[1755139811513,1.1219359,123720.0,123710.0,0.21303058]
[1755139811715,1.35160006,123720.0,123710.0,0.21303058]
[1755139813117,1.8880559,123720.0,123710.0,0.21303058]
[1755139817822,1.8880559,123720.0,123710.0,0.14014058]
[1755139818914,1.8880559,123720.0,123710.0,0.01262718]
[1755139819119,1.8880559,123720.0,123710.0,0.09343068]
[1755139819120,2.66681274,123720.0,123710.0,0.09343068]
[1755139819320,1.1219359,123720.0,123710.0,0.09343068]
[1755139819533,1.8878959,123720.0,123710.0,0.21303068]
[1755139819827,1.8878959,123720.0,123710.0,0.21299908]
[1755139821525,1.8878959,123720.0,123710.0,0.14010908]
[1755139821738,1.34175006,123720.0,123710.0,0.21299908]
[1755139821921,1.8782059,123720.0,123710.0,0.10327908]
[1755139822317,0.7611359,123720.0,123710.0,0.21299908]
[1755139822523,1.5270159,123720.0,123710.0,0.21299908]
[1755139822823,0.99056006,123720.0,123710.0,0.21300027]
[1755139824130,1.35136006,123720.0,123710.0,0.21300027]
[1755139825030,1.8878159,123720.0,123710.0,0.21300027]
[1755139825824,1.8878159,123720.0,123710.0,0.21300386]
[1755139825825,1.35136006,123720.0,123710.0,0.21300386]
[1755139831238,1.35136006,123720.0,123710.0,0.7494597]
[1755139831239,0.03963006,123720.0,123710.0,0.7494597]
[1755139831544,0.03963006,123720.0,123710.0,1.1102597]
[1755139831736,0.03937006,123720.0,123710.0,1.1102597]
[1755139832248,0.08347006,123720.0,123710.0,1.1102597]
[1755139832642,0.04410006,123720.0,123710.0,1.1102597]
[1755139833046,0.04410006,123720.0,123710.0,1.1112597]
[1755139833348,0.06697006,123720.0,123710.0,1.11129519]
[1755139834650,0.06697006,123720.0,123710.0,0.57483935]
[1755139834949,0.06697006,123720.0,123710.0,1.11129519]
[1755139836253,0.08360006,123720.0,123710.0,1.11129519]
[1755139836453,0.11714006,123720.0,123710.0,1.11129519]
[1755139836949,0.06073006,123720.0,123710.0,1.11129519]
[1755139837144,0.04410006,123720.0,123710.0,1.11129519]
[1755139838848,0.04410006,123720.0,123710.0,0.57483935]
[1755139839243,0.06073006,123720.0,123710.0,1.11129519]
[1755139839450,0.11714006,123720.0,123710.0,1.11129519]
[1755139842257,0.08360006,123720.0,123710.0,1.11129519]
[1755139843150,0.06073006,123720.0,123710.0,1.11129519]
[1755139849969,0.04410006,123720.0,123710.0,0.57483935]
[1755139850161,0.14901006,123720.0,123710.0,1.11129519]
[1755139850461,0.14901006,123720.0,123710.0,1.87609519]
[1755139851166,0.15919006,123720.0,123710.0,0.57483935]
[1755139852667,0.15919006,123720.0,123710.0,1.11129519]
[1755139854857,0.11714006,123720.0,123710.0,1.11129519]
[1755139855056,0.06073006,123720.0,123710.0,1.11129519]